[Event "Fall IM-D Norm Invitational 2022"]
[Site "Charlotte"]
[Date "2022.11.19"]
[Round "4"]
[White "De La Colina, Nicolas"]
[Black "Marek, Matyas"]
[Result "0-1"]
[ECO "B40"]
[WhiteElo "2123"]
[BlackElo "2346"]
[Annotator "TA"]
[PlyCount "72"]
[EventDate "2022.11.18"]
[EventType "tourn"]
[EventCountry "USA"]
[SourceTitle "playchess.com"]
[Source "ChessBase"]
[SourceQuality "1"]
[TimeControl "5400+30"]

{[%evp 22,72,-22,-44,-47,0,-2,-76,-80,-87,-48,-87,-79,-81,-88,-127,-100,-113,-109,-144,-137,-133,-112,-158,-133,-160,-153,-154,-128,-159,-164,-216,-210,-221,-227,-220,-222,-317,-294,-334,-331,-307,-264,-344,-297,-575,-554,-29987,-29988,-29995,-29996,-29996,-29997]} 1. e4 {[%emt 0:00:16]} c5 {[%emt 0:00:13]} 2. Nf3 {[%emt 0:00:48]} e6 {[%emt 0:00:06]} 3. d3 {[%emt 0:00:58]} Nc6 {[%emt 0:00:40]} 4. g3 {[%emt 0:00:56]} d5 {[%emt 0:01:37]} 5. Qe2 {[%emt 0:00:32]} Nge7 {[%emt 0:00:11]} 6. Bg2 {[%emt 0:02:20]} g6 {[%emt 0:00:06]} 7. O-O {[%emt 0:03:06]} Bg7 {[%emt 0:00:06]} 8. c3 {[%emt 0:04:54]} O-O {[%emt 0:00:22]} 9. Re1 {[%emt 0:01:07]} h6 {[%emt 0:01:32]} 10. h4 {[%emt 0:00:22]} e5 {[%emt 0:03:18]} 11. exd5 {[%emt 0:08:12]} Nxd5 {[%emt 0:00:10]} 12. Nbd2 {[%emt 0:00:18]} Re8 {[%emt 0:06:28] [#] A08: King's Indian Attack.} 13. Ne4 $146 {[%emt 0:06:37]} ({Predecessor:} 13. Nh2 Be6 14. Nc4 Qd7 15. Ne3 Rad8 16. Bd2 Nf6 17. Nef1 Ng4 18. Be3 Nxh2 19. Nxh2 Bd5 20. Bxd5 Qxd5 {0-1 (38) Lazic,M (2450)-Barlov,D (2485) Nis 1995}) 13... b6 {[%emt 0:04:43]} 14. Qc2 {[%emt 0:02:46]} (14. h5 $1 $11) 14... Be6 $17 {[%emt 0:06:54] Black is better.} 15. a3 {[%emt 0:01:55]} Qc7 {[%emt 0:02:32]} 16. Rb1 {[%emt 0:11:38]} f5 {[%emt 0:16:25] White is on the road to losing.} 17. Ned2 {[%emt 0:00:23]} Rad8 {[%emt 0:00:05] Black is more active.} 18. Nc4 {[%emt 0:08:02]} Bf7 {[%emt 0:02:34]} 19. Bd2 {[%emt 0:05:32]} Nf6 {[%emt 0:03:42]} 20. b3 {[%emt 0:05:44]} b5 {[%emt 0:07:45]} 21. Nb2 {[%emt 0:01:48]} Qd6 {[%emt 0:02:54]} 22. Rbd1 {[%emt 0:03:26]} ({Better is} 22. Re2) 22... a6 {[%emt 0:02:41]} 23. Bc1 {[%emt 0:03:33]} Na5 {[%emt 0:04:00]} 24. c4 {[%emt 0:01:35]} Nc6 {[%emt 0:00:30]} 25. Bd2 {[%emt 0:02:36]} Ng4 $1 {[%emt 0:14:42]} 26. Bc3 {[%emt 0:04:57] [#]} (26. cxb5 $142 axb5 27. Bc3) 26... b4 $1 $19 {[%emt 0:06:53]} 27. axb4 {[%emt 0:00:25]} cxb4 {[%emt 0:00:03]} (27... Nxb4 28. Bxb4 cxb4 29. Re2 $11) 28. Bd2 {[%emt 0:00:41] [#]} f4 $1 {[%emt 0:05:27] And now ...fxg3 would win.} ({Worse is} 28... Qc5 29. Bc1 $11) 29. gxf4 {[%emt 0:11:15]} (29. c5 $142 Qf6 30. Re4) 29... exf4 {[%emt 0:00:40] White must now prevent ...Nd4.} 30. Rxe8+ {[%emt 0:01:40]} Rxe8 {[%emt 0:00:06]} 31. Re1 {[%emt 0:00:51]} Nd4 {[%emt 0:01:22]} 32. Rxe8+ {[%emt 0:01:02]} Bxe8 {[%emt 0:00:04]} 33. Nxd4 {[%emt 0:00:58]} (33. Qd1 Bc6 34. Be1 (34. Nxd4 $2 Nxf2 35. Nxc6 Nxd1 $19)) 33... Bxd4 {[%emt 0:00:13]} ({Inferior is} 33... Qxd4 34. Nd1 $11) 34. Nd1 {[%emt 0:00:26]} f3 {[%emt 0:05:37] Black mates.} 35. Bxf3 {[%emt 0:00:06]} Qg3+ $1 {[%emt 0:01:29]} 36. Bg2 {[%emt 0:01:22]} Bc6 {[%emt 0:00:14] Weighted Error Value: White=0.65/Black=0.10 (very precise)} 0-1